bitfinex-derivatives/quotes_BTCF0:USTF0_20250422
["timestamp","ask_amount","ask_price","bid_price","bid_amount"]
[1745328460066,0.4095,89750.0,89727.0,0.14662272]
[1745328460269,0.3608,89730.0,89727.0,0.12062272]
[1745328460470,0.07916,89729.0,89728.0,0.1908]
[1745328460778,0.07916,89738.0,89736.0,0.5571]
[1745328461074,0.07916,89738.0,89737.0,0.7479]
[1745328461075,0.07924,89738.0,89737.0,0.7479]
[1745328461473,0.07924,89738.0,89737.0,0.7409]
[1745328461774,0.44004,89738.0,89725.0,0.1802]
[1745328461977,0.3608,89730.0,89725.0,0.1802]
[1745328462370,0.00848993,89737.0,89725.0,0.1802]
[1745328462569,0.3608,89730.0,89725.0,0.1802]
[1745328463475,0.3608,89730.0,89727.0,0.00220019]
[1745328463672,0.3608,89730.0,89726.0,0.17154982]
[1745328464374,0.3608,89730.0,89726.0,0.12593982]
[1745328464680,0.3608,89730.0,89726.0,0.11293982]
[1745328464866,0.3608,89730.0,89727.0,0.13941]
[1745328465571,0.3608,89730.0,89725.0,0.1852]
[1745328465774,0.3608,89727.0,89725.0,0.1802]
[1745328466677,0.36088,89727.0,89725.0,0.1802]
[1745328467081,0.36088,89727.0,89725.0,0.1852]
[1745328467479,0.3608,89727.0,89725.0,0.1852]
[1745328467674,0.36088,89727.0,89725.0,0.1852]
[1745328467879,0.36088,89727.0,89726.0,0.1957]
[1745328468380,8e-05,89727.0,89726.0,0.1957]
[1745328468581,8e-05,89727.0,89726.0,0.3763]
[1745328469078,8e-05,89727.0,89726.0,0.3693]
[1745328469280,8e-05,89727.0,89726.0,0.3743]
[1745328469885,8e-05,89727.0,89726.0,0.32634]
[1745328471983,8e-05,89727.0,89726.0,0.31347433]
[1745328472182,8e-05,89727.0,89726.0,0.06235455]
[1745328472382,8e-05,89727.0,89726.0,0.02335455]
[1745328472886,8e-05,89727.0,89726.0,0.01255455]
[1745328473188,8e-05,89727.0,89725.0,0.1802]
[1745328473882,8e-05,89727.0,89722.0,8.936e-05]
[1745328474078,0.18788,89727.0,89722.0,8.936e-05]
[1745328474580,0.0792,89726.0,89722.0,8.936e-05]
[1745328475084,0.3212,89726.0,89722.0,8.936e-05]
[1745328475984,0.3212,89726.0,89725.0,0.003]
[1745328476381,0.3212,89726.0,89722.0,0.00108936]
[1745328477179,0.3222,89726.0,89722.0,8.936e-05]
[1745328479381,0.3212,89726.0,89722.0,8.936e-05]
[1745328480088,0.07928,89726.0,89723.0,0.55726]
[1745328480292,8e-05,89726.0,89725.0,0.55726]
[1745328480590,0.02638678,89751.0,89725.0,0.6327]
[1745328480792,0.0792,89748.0,89745.0,0.54860967]
[1745328481088,0.0792,89748.0,89746.0,0.5706]
[1745328481286,0.0792,89748.0,89747.0,0.18780967]
[1745328481685,0.07928,89748.0,89747.0,0.57580967]
[1745328482279,0.0792,89754.0,89747.0,0.57580967]
[1745328482484,0.0792,89754.0,89753.0,0.3608]
[1745328482887,0.0792,89754.0,89753.0,0.54860967]
[1745328483079,0.0792,89754.0,89753.0,0.54460967]
[1745328483588,0.0842,89754.0,89753.0,0.54460967]
[1745328483987,0.0792,89754.0,89753.0,0.54460967]
[1745328484290,0.0832,89754.0,89753.0,0.54460967]
[1745328484485,0.0832,89754.0,89753.0,0.53760967]
[1745328484990,0.0832,89754.0,89753.0,0.18780967]
[1745328485380,0.0832,89754.0,89753.0,0.14577576]
[1745328485600,0.08328,89754.0,89753.0,0.13182724]
[1745328486090,0.07928,89754.0,89747.0,0.388]
[1745328486293,0.08228,89754.0,89748.0,0.03926656]
[1745328486486,0.47222,89753.0,89747.0,0.35779]
[1745328486787,0.05,89752.0,89747.0,0.23120788]
[1745328486990,0.16142,89752.0,89747.0,0.15420894]
[1745328487192,0.35342,89752.0,89747.0,0.12449894]
[1745328487393,0.35342,89752.0,89746.0,0.1879]
[1745328487691,0.242,89752.0,89746.0,0.13210894]
[1745328487879,0.242,89752.0,89736.0,0.29442521]
[1745328488083,0.3608,89745.0,89731.0,0.3608]
[1745328488481,0.3608,89745.0,89732.0,0.01664656]
[1745328488882,0.3608,89745.0,89733.0,0.01664656]
[1745328489083,0.3608,89745.0,89732.0,0.01664656]
[1745328489488,0.3638,89745.0,89733.0,0.01664656]
[1745328489795,0.3638,89745.0,89732.0,0.01664656]
[1745328490187,0.3638,89745.0,89733.0,0.19954656]
[1745328490495,0.3608,89744.0,89733.0,0.1829]
[1745328490791,0.3608,89744.0,89734.0,0.20794656]
[1745328490980,0.36088,89744.0,89734.0,0.20794656]
[1745328491179,0.36088,89744.0,89735.0,0.01664656]
[1745328491587,0.36088,89744.0,89736.0,0.01664656]
[1745328491790,0.36288,89744.0,89735.0,0.01664656]
[1745328491988,0.00208,89744.0,89734.0,0.16373762]
[1745328492380,0.00208,89744.0,89734.0,0.15673762]
[1745328492581,0.1745239,89744.0,89734.0,0.12673762]
[1745328492787,0.08092,89743.0,89734.0,0.12673762]
[1745328494190,0.081,89743.0,89734.0,0.12673762]
[1745328494897,0.2716,89743.0,89734.0,0.12673762]
[1745328495192,0.4666,89743.0,89734.0,0.12673762]
[1745328495582,0.4686,89743.0,89734.0,0.12673762]
[1745328496983,0.083,89743.0,89734.0,0.12673762]
[1745328498093,0.08292,89743.0,89734.0,0.12673762]
[1745328498300,0.083,89743.0,89734.0,0.12673762]
[1745328499988,0.083,89743.0,89734.0,0.11973762]
[1745328500999,0.083,89743.0,89734.0,0.10578743]
[1745328501507,0.3652,89742.0,89734.0,0.10578743]
[1745328501892,0.08092,89741.0,89734.0,0.10578743]
[1745328502597,0.08092,89741.0,89734.0,0.0868142]
[1745328502786,0.38,89740.0,89733.0,0.03369768]
[1745328504393,0.00108,89741.0,89733.0,0.03369768]
[1745328504598,0.00010801,89747.0,89739.0,0.3608]
[1745328504794,0.00026573,89754.0,89745.0,0.3598]
[1745328505096,8e-05,89747.0,89745.0,0.3075554]
[1745328506100,8e-05,89747.0,89746.0,0.3743]
[1745328506597,0.00108,89747.0,89746.0,0.3743]
[1745328507696,0.00108,89747.0,89746.0,0.3673]
[1745328507893,0.00108,89747.0,89746.0,0.5587]
[1745328508206,8e-05,89747.0,89746.0,0.5597]
[1745328510692,8e-05,89747.0,89746.0,0.3788]
[1745328510895,8e-05,89747.0,89746.0,0.368]
[1745328511697,8e-05,89747.0,89746.0,0.36411935]
[1745328511893,0.37478,89747.0,89746.0,0.08665322]
[1745328512304,0.37478,89747.0,89746.0,0.08565322]
[1745328512602,0.37678,89747.0,89738.0,0.1804]
[1745328512999,0.3608,89739.0,89729.0,0.24354713]
[1745328513201,0.3747,89738.0,89730.0,0.1804]
[1745328513703,0.3747,89738.0,89730.0,0.17479845]
[1745328513906,0.3747,89738.0,89730.0,0.16524941]
[1745328514595,0.3787,89738.0,89730.0,0.16524941]
[1745328514996,0.3747,89738.0,89731.0,0.171114]
[1745328515195,0.3787,89738.0,89731.0,0.171114]
[1745328515397,0.3787,89738.0,89731.0,0.164114]
[1745328515603,0.3787,89738.0,89731.0,0.363414]
[1745328515804,0.3787,89738.0,89731.0,0.333414]
[1745328516204,0.3787,89738.0,89731.0,0.306544]
[1745328516708,0.3787,89738.0,89731.0,0.291544]
[1745328516709,0.185,89738.0,89731.0,0.291544]
[1745328516910,0.004,89738.0,89731.0,0.291544]
[1745328517113,0.1971,89745.0,89731.0,0.291544]
[1745328517311,0.003,89738.0,89731.0,0.291544]
[1745328517714,8e-05,89738.0,89731.0,0.291544]
[1745328517908,0.003,89738.0,89731.0,0.291544]
[1745328518103,0.00308,89738.0,89731.0,0.291544]
[1745328518303,8e-05,89738.0,89731.0,0.291544]
[1745328518504,8e-05,89738.0,89731.0,0.294544]
[1745328519013,0.36088,89738.0,89731.0,0.291544]
[1745328519206,0.1831,89737.0,89731.0,0.291544]
[1745328519618,8e-05,89738.0,89731.0,0.291544]
[1745328519911,0.08076,89752.0,89737.0,0.3608]
[1745328520110,0.08076,89752.0,89751.0,0.3608]
[1745328520316,0.1831,89755.0,89751.0,0.3608]
[1745328520317,0.08076,89754.0,89751.0,0.3608]
[1745328520512,8e-05,89752.0,89751.0,0.3608]
[1745328523224,0.00010801,89760.0,89751.0,0.46522]
[1745328523426,0.08076,89789.0,89756.0,0.1114108]
[1745328523723,0.00014581,89778.0,89772.0,0.3608]
[1745328523923,0.1932,89781.0,89774.0,0.3608]
[1745328524128,8e-05,89778.0,89774.0,0.3608]
[1745328524326,8e-05,89778.0,89774.0,0.34685718]
[1745328524519,0.02438429,89778.0,89774.0,0.34685718]
[1745328524823,8e-05,89778.0,89774.0,0.34685718]
[1745328525022,0.1933,89777.0,89771.0,0.3608]
[1745328525223,0.1947,89776.0,89767.0,0.0001671]
[1745328525726,0.1933,89775.0,89767.0,0.0001671]
[1745328526223,0.1811,89774.0,89767.0,0.0001671]
[1745328526825,0.1933,89773.0,89767.0,0.0001671]
[1745328527224,0.1811,89772.0,89767.0,0.0001671]
[1745328527614,0.1845,89771.0,89767.0,0.0001671]
[1745328528023,0.1811,89770.0,89767.0,0.0001671]
[1745328528426,0.1845,89769.0,89767.0,0.0001671]
[1745328529822,0.186,89768.0,89767.0,0.0001671]
[1745328531023,0.186,89768.0,89760.0,0.3539671]
[1745328531220,0.1939,89767.0,89763.0,0.3608]
[1745328531626,8e-05,89767.0,89763.0,0.3608]
[1745328531826,0.1939,89766.0,89763.0,0.3608]
[1745328533626,0.197,89765.0,89763.0,0.3608]
[1745328534023,0.197,89765.0,89764.0,0.196]
[1745328534834,0.197,89765.0,89764.0,0.18205516]
[1745328535132,0.197,89765.0,89764.0,0.36585516]
[1745328535633,0.3608,89766.0,89757.0,0.49164799]
[1745328535934,0.183,89764.0,89757.0,0.49164799]
[1745328536134,0.183,89764.0,89758.0,0.1905]
[1745328537030,0.183,89764.0,89757.0,0.49164799]
[1745328537535,8e-05,89767.0,89757.0,0.49164799]
[1745328537738,8e-05,89767.0,89766.0,0.3608]
[1745328538333,8e-05,89767.0,89764.0,0.3608]
[1745328538527,8e-05,89767.0,89765.0,0.3786]
[1745328538729,8e-05,89767.0,89765.0,0.3716]
[1745328539728,0.00308,89767.0,89765.0,0.3716]
[1745328540124,0.00308,89767.0,89766.0,0.3608]
[1745328540436,0.002,89767.0,89766.0,0.5489]
[1745328540636,0.00208,89767.0,89766.0,0.5489]
[1745328540834,8e-05,89767.0,89766.0,0.5489]
[1745328541524,8e-05,89767.0,89766.0,0.5509]
[1745328542131,8e-05,89767.0,89766.0,0.7417]
[1745328543127,8e-05,89767.0,89766.0,0.7397]
[1745328543632,8e-05,89767.0,89766.0,0.7407]
[1745328544737,8e-05,89767.0,89766.0,0.7397]
[1745328544928,8e-05,89767.0,89766.0,0.7407]
[1745328545132,8e-05,89767.0,89766.0,0.72675724]
[1745328546238,8e-05,89767.0,89766.0,0.72575724]
[1745328546435,8e-05,89767.0,89766.0,0.72675724]
[1745328546636,8e-05,89767.0,89766.0,0.3799]
[1745328546836,8e-05,89767.0,89766.0,1.1005]
[1745328547041,8e-05,89767.0,89766.0,1.1025]
[1745328547340,8e-05,89767.0,89766.0,1.1005]
[1745328547547,8e-05,89767.0,89766.0,1.1015]
[1745328547932,8e-05,89767.0,89766.0,1.1005]
[1745328548135,8e-05,89767.0,89766.0,1.1025]
[1745328548337,8e-05,89767.0,89766.0,0.7417]
[1745328549536,8e-05,89767.0,89766.0,0.7397]
[1745328549840,8e-05,89767.0,89766.0,0.7407]
[1745328550839,8e-05,89767.0,89766.0,0.7397]
[1745328551446,0.1974,89772.0,89766.0,0.7397]
[1745328551642,8e-05,89767.0,89766.0,0.7397]
[1745328551944,0.00836569,89778.0,89766.0,0.7397]
[1745328552137,8e-05,89767.0,89766.0,0.7397]
[1745328553739,8e-05,89767.0,89766.0,0.7417]
[1745328554334,8e-05,89767.0,89766.0,0.7347]
[1745328555840,8e-05,89767.0,89766.0,0.72075723]
[1745328556741,8e-05,89767.0,89766.0,0.71975723]
[1745328562045,8e-05,89767.0,89766.0,0.71275723]
[1745328562439,8e-05,89767.0,89766.0,0.71175723]
[1745328562638,0.00019684,89780.0,89766.0,0.71175723]
[1745328562639,0.07912,89803.0,89766.0,1.07415723]
[1745328562841,0.07912,89808.0,89784.0,0.3608]
[1745328563043,0.20217801,89808.0,89807.0,0.3608]
[1745328563238,0.00817801,89808.0,89807.0,0.3608]
[1745328563443,0.3879,89815.0,89807.0,0.3608]
[1745328563643,0.3879,89815.0,89808.0,0.194]
[1745328564245,0.3879,89815.0,89808.0,0.191]
[1745328564651,0.3879,89815.0,89807.0,0.3608]
[1745328564652,0.39643103,89815.0,89807.0,0.30904516]
[1745328564847,0.1961,89814.0,89807.0,0.30904516]
[1745328565247,0.3807,89813.0,89807.0,0.30904516]
[1745328565444,0.3807,89813.0,89807.0,0.29171516]
[1745328565651,0.3807,89813.0,89805.0,0.3608]
[1745328565853,0.3608,89806.0,89803.0,0.0001671]
[1745328566149,0.3807,89805.0,89793.0,0.35092337]
[1745328567149,0.5727,89805.0,89793.0,0.35092337]
[1745328567355,0.5727,89805.0,89791.0,0.1824]
[1745328567552,0.5747,89805.0,89791.0,0.17309]
[1745328568253,0.5747,89805.0,89786.0,0.1969]
[1745328568754,0.5747,89805.0,89782.0,0.3608]
[1745328569350,0.3608,89798.0,89782.0,0.3608]
[1745328569548,0.5491,89797.0,89782.0,0.3608]
[1745328569750,0.5491,89797.0,89782.0,0.3538]
[1745328570155,0.3608,89784.0,89777.0,0.3608]
[1745328570454,0.3646,89783.0,89774.0,0.1724439]
[1745328570954,0.3646,89783.0,89775.0,0.1825]
[1745328572249,0.3646,89783.0,89777.0,0.004]
[1745328572450,0.3608,89778.0,89758.0,0.4114]
[1745328572645,0.3608,89762.0,89758.0,0.4114]
[1745328572848,0.3608,89762.0,89758.0,0.39745715]
[1745328573056,0.383,89761.0,89758.0,0.39745715]
[1745328573356,0.383,89761.0,89759.0,0.3835]
[1745328573857,0.383,89761.0,89757.0,0.3608]
[1745328574353,0.3608,89791.0,89766.0,0.0556992]
[1745328574546,0.1932,89780.0,89776.0,0.3608]
[1745328574744,0.1932,89780.0,89777.0,0.3808]
[1745328574943,0.554,89780.0,89777.0,0.3808]
[1745328575152,0.1874,89779.0,89773.0,0.1724439]
[1745328575555,0.1932,89778.0,89773.0,0.1724439]
[1745328576054,0.1874,89777.0,89773.0,0.1724439]
[1745328576450,0.1919,89776.0,89769.0,0.1992]
[1745328576754,0.1919,89776.0,89773.0,0.001]
[1745328577152,0.3839,89776.0,89770.0,0.1846]
[1745328577856,0.38398,89776.0,89770.0,0.1846]
[1745328578250,0.38398,89776.0,89769.0,0.1992]
[1745328578646,0.56588,89776.0,89769.0,0.1992]
[1745328578849,0.56588,89776.0,89767.0,0.0001671]
[1745328579663,0.56588,89776.0,89769.0,0.001]
[1745328579956,0.56588,89776.0,89772.0,0.3608]
[1745328580961,0.06588,89776.0,89770.0,0.3608]
[1745328581256,0.25788,89776.0,89770.0,0.3608]
[1745328581658,0.25796,89776.0,89770.0,0.3608]
[1745328585455,0.33672,89776.0,89770.0,0.3608]
[1745328586865,0.34672,89776.0,89770.0,0.3618]
[1745328589964,0.33672,89776.0,89770.0,0.3608]
[1745328590259,0.34172,89776.0,89767.0,0.0001671]
[1745328590459,0.34172,89776.0,89769.0,0.3608]
[1745328590667,0.34172,89776.0,89769.0,0.7216]
[1745328590865,0.34164,89776.0,89769.0,0.7216]
[1745328591052,0.34172,89776.0,89769.0,0.7216]
[1745328592161,0.33672,89776.0,89769.0,0.7216]
[1745328592356,0.34372,89776.0,89769.0,0.7216]
[1745328592962,0.33672,89776.0,89769.0,0.7216]
[1745328593263,0.34372,89776.0,89769.0,0.7216]
[1745328593662,0.34372,89776.0,89772.0,0.00152986]
[1745328594062,0.34372,89776.0,89773.0,0.1842]
[1745328594663,0.34372,89776.0,89774.0,0.00152986]
[1745328594961,0.26496,89776.0,89774.0,0.00152986]
[1745328595161,0.05634664,89775.0,89774.0,0.00152986]
[1745328596366,0.24834664,89775.0,89774.0,0.00152986]
[1745328597165,0.25534664,89775.0,89774.0,0.00152986]
[1745328597468,0.25534664,89775.0,89773.0,0.17011077]
[1745328598266,0.25534664,89775.0,89769.0,0.7216]
[1745328598567,0.25534664,89775.0,89770.0,0.445568]
[1745328598964,0.25534664,89775.0,89769.0,0.7216]
[1745328599465,0.25534664,89775.0,89769.0,0.66582575]
[1745328599659,0.25534664,89775.0,89769.0,0.5631515]
[1745328599859,0.24834664,89775.0,89770.0,0.591368]
[1745328600162,0.25534664,89775.0,89770.0,0.591368]
[1745328600461,0.199,89775.0,89774.0,0.411668]
[1745328600859,0.00014581,89789.0,89776.0,0.0556924]
[1745328601163,0.1724439,89830.0,89788.0,0.7216]
[1745328601461,0.1724439,89800.0,89790.0,0.3608]
[1745328601664,0.1917,89799.0,89791.0,0.3232164]
[1745328601863,0.1917,89799.0,89798.0,0.35699378]
[1745328602164,0.07876,89823.0,89798.0,0.65620122]
[1745328602363,0.1724439,89808.0,89790.0,0.3608]
[1745328602562,0.2224439,89800.0,89790.0,0.25571514]
[1745328602766,0.3608,89795.0,89788.0,0.002]
[1745328603068,0.1917,89794.0,89782.0,0.2277171]
[1745328603254,0.1917,89794.0,89783.0,0.5194164]
[1745328603766,0.1917,89794.0,89760.0,0.1724439]
[1745328603767,0.3608,89784.0,89745.0,0.3608]
[1745328603954,0.1724439,89755.0,89735.0,0.3608]
[1745328604265,0.1724439,89755.0,89682.0,0.0557513]
[1745328604266,0.4619271,89754.0,89736.0,0.0001671]
[1745328604459,0.07876,89753.0,89727.0,0.3608]
[1745328604660,0.190192,89753.0,89736.0,0.0001671]
[1745328604864,0.303128,89752.0,89735.0,0.29036521]
[1745328605056,0.303128,89752.0,89723.0,0.3608]
[1745328605057,0.190188,89751.0,89723.0,0.3608]
[1745328605255,0.05,89728.0,89723.0,0.3608]
[1745328605455,0.1913,89727.0,89717.0,0.3608]
[1745328605663,0.383,89727.0,89726.0,0.3348]
[1745328605857,0.46176,89727.0,89726.0,0.22329372]
[1745328606060,0.823208,89727.0,89726.0,0.16754058]
[1745328606262,0.936448,89727.0,89718.0,0.00016721]
[1745328606458,0.472256,89726.0,89723.0,0.001]
[1745328606766,0.601016,89726.0,89723.0,0.001]
[1745328606971,0.01864777,89725.0,89706.0,0.29649486]
[1745328607263,0.05,89712.0,89703.0,0.3608]
[1745328607571,0.05,89712.0,89689.0,0.3608]
[1745328607871,0.3608,89704.0,89691.0,0.3608]
[1745328608179,0.1849,89703.0,89691.0,0.3608]
[1745328608356,0.376784,89703.0,89691.0,0.3608]
[1745328608560,0.111488,89702.0,89691.0,0.3608]
[1745328608964,0.111488,89701.0,89691.0,0.3638]
[1745328609159,0.192,89701.0,89699.0,0.3608]
[1745328609559,0.19208,89701.0,89699.0,0.3608]
[1745328609759,0.19208,89701.0,89700.0,0.1948]
[1745328609964,0.19208,89701.0,89699.0,0.3608]
[1745328610160,0.24208,89701.0,89695.0,0.3608]
[1745328610570,0.24308,89701.0,89695.0,0.3608]
[1745328610765,0.3608,89696.0,89676.0,0.06838178]
[1745328611065,0.3608,89696.0,89670.0,0.3608]
[1745328611066,0.05,89674.0,89670.0,0.31610035]
[1745328611269,0.0804,89673.0,89655.0,0.17032]
[1745328611567,0.0804,89673.0,89652.0,0.3608]
[1745328611568,0.05,89662.0,89652.0,0.34184]
[1745328611868,0.05,89654.0,89639.0,0.30755295]
[1745328612068,0.08044,89653.0,89640.0,0.65022423]
[1745328612269,0.08044,89653.0,89639.0,0.30755295]
[1745328612670,0.3608,89643.0,89628.0,0.3608]
[1745328612870,0.05,89638.0,89628.0,0.31355541]
[1745328613468,0.05,89638.0,89618.0,0.3608]
[1745328613771,0.05833584,89638.0,89626.0,0.3608]
[1745328613974,0.1825,89637.0,89627.0,0.65022423]
[1745328614162,0.20033584,89638.0,89635.0,0.3608]
[1745328614362,0.00024732,89637.0,89636.0,0.1952]
[1745328614561,0.00024732,89637.0,89636.0,0.3894]
[1745328615275,0.22213299,89637.0,89636.0,0.3894]
[1745328615461,0.22213299,89637.0,89601.0,0.0558012]
[1745328615462,1.14634732,89637.0,89609.0,0.3608]
[1745328615778,0.3608,89613.0,89602.0,0.65022423]
[1745328616076,0.3608,89608.0,89603.0,0.1942]
[1745328616263,0.3608,89608.0,89604.0,0.65022423]
[1745328616468,0.3608,89611.0,89604.0,0.65022423]
[1745328616775,0.13048,89620.0,89609.0,0.002]
[1745328616965,0.3608,89610.0,89603.0,0.1942]
[1745328617169,0.5528,89610.0,89603.0,0.1942]
[1745328617366,0.5528,89610.0,89568.0,0.00502409]
[1745328617671,0.05,89595.0,89567.0,0.1854]
[1745328617874,0.3608,89575.0,89568.0,0.58940636]
[1745328618068,0.08048,89586.0,89569.0,0.58940636]
[1745328618270,0.192,89575.0,89572.0,0.3608]
[1745328618467,8e-05,89586.0,89572.0,0.3608]
[1745328618666,8e-05,89586.0,89574.0,0.3608]
[1745328618667,0.00861731,89586.0,89574.0,0.3608]
[1745328618864,0.00016742,89590.0,89585.0,0.58940636]
[1745328619063,0.36096742,89590.0,89589.0,0.58840636]
[1745328619276,0.56135977,89590.0,89586.0,0.18125294]
[1745328619468,8e-05,89586.0,89568.0,0.009]
[1745328619669,0.19728,89586.0,89569.0,0.57891342]
[1745328619873,8e-05,89586.0,89569.0,0.57891342]
[1745328620066,8e-05,89586.0,89585.0,0.57891342]
[1745328620468,0.3608,89589.0,89585.0,0.57891342]
[1745328620669,0.3608,89589.0,89586.0,0.57891342]
[1745328620981,0.1896,89588.0,89569.0,0.77441342]
[1745328621184,0.3608,89570.0,89569.0,0.1955]
[1745328621676,0.3608,89570.0,89569.0,0.77441342]
[1745328621882,0.3902073,89570.0,89569.0,0.77441342]
[1745328622078,0.7510073,89570.0,89569.0,0.77441342]
[1745328622373,0.9430073,89570.0,89569.0,0.77441342]
[1745328622776,0.9430073,89570.0,89569.0,0.77541342]
[1745328623480,0.9440073,89570.0,89553.0,0.08452]
[1745328623676,0.9440073,89570.0,89545.0,0.3608]
[1745328623677,0.3608,89559.0,89523.0,0.3608]
[1745328623877,0.3608,89546.0,89533.0,0.08852]
[1745328624076,0.5528,89546.0,89518.0,0.3608]
[1745328624274,0.5528,89546.0,89542.0,0.00102555]
[1745328624675,0.192,89546.0,89542.0,0.00102555]
[1745328624879,0.19208,89546.0,89542.0,0.36270155]
[1745328625082,0.19208,89546.0,89542.0,0.36370155]
[1745328625278,0.3608,89564.0,89546.0,0.1116715]
[1745328625479,0.3608,89580.0,89563.0,0.3608]
[1745328625674,0.3608,89580.0,89559.0,0.3608]
[1745328625675,8e-05,89564.0,89559.0,0.3608]
[1745328625872,0.3608,89580.0,89559.0,0.44932]
[1745328626072,8e-05,89564.0,89559.0,0.08852]
[1745328626779,0.00108,89564.0,89560.0,0.5698]
[1745328627183,0.3608,89561.0,89560.0,0.5698]
[1745328627376,0.3608,89562.0,89560.0,0.5698]
[1745328627689,0.19308,89564.0,89560.0,0.5698]
[1745328627986,0.193,89564.0,89560.0,0.5698]
[1745328628185,0.001,89564.0,89560.0,0.5698]
[1745328628485,0.02957472,89570.0,89569.0,0.1116435]
[1745328628688,0.00014581,89595.0,89585.0,0.0558115]
[1745328628882,0.3608,89620.0,89594.0,0.3608]
[1745328629079,0.3608,89626.0,89617.0,0.3608]
[1745328629080,0.36090801,89626.0,89617.0,0.3608]
[1745328629277,0.3608,89641.0,89625.0,0.3608]
[1745328629476,0.05,89645.0,89641.0,0.1115536]
[1745328629683,0.3608,89659.0,89644.0,0.3608]
[1745328629887,0.00824039,89659.0,89644.0,0.3608]
[1745328630076,8e-05,89659.0,89654.0,0.3608]
[1745328630279,0.3608,89678.0,89658.0,0.3608]
[1745328630479,0.0464714,89681.0,89666.0,0.3608]
[1745328630699,0.1965,89712.0,89677.0,0.3608]
[1745328630889,0.13686607,89700.0,89678.0,0.28702]
[1745328631078,0.00010801,89686.0,89678.0,0.28702]
[1745328631280,0.3608,89686.0,89678.0,0.28202]
[1745328631485,0.00016733,89682.0,89678.0,0.1935]
[1745328632185,0.00016733,89682.0,89651.0,0.08852]
[1745328632186,0.24216733,89682.0,89651.0,0.08852]
[1745328632488,0.3618,89659.0,89654.0,0.005]
[1745328632877,0.3608,89656.0,89651.0,0.08852]
[1745328633288,0.3608,89666.0,89651.0,0.08852]
[1745328633289,0.00016733,89662.0,89651.0,0.08852]
[1745328633489,0.00016733,89662.0,89654.0,0.3608]
[1745328633788,0.003,89682.0,89672.0,0.0557571]
[1745328634089,0.00010801,89688.0,89680.0,0.3608]
[1745328634275,0.00014581,89698.0,89681.0,0.08852]
[1745328634478,0.10831678,89700.0,89681.0,0.08852]
[1745328634479,0.10831678,89700.0,89689.0,0.3608]
[1745328634677,8e-05,89698.0,89690.0,0.1924]
[1745328634884,0.3608,89693.0,89690.0,0.1924]
[1745328635090,0.05,89691.0,89655.0,0.08852]
[1745328635284,0.3608,89674.0,89660.0,0.378]
[1745328635485,0.3608,89674.0,89666.0,0.00016733]
[1745328636089,0.00083267,89662.0,89660.0,0.378]
[1745328636287,0.00083267,89662.0,89661.0,0.2230529]
[1745328636587,8e-05,89662.0,89661.0,0.5838529]
[1745328636792,8e-05,89662.0,89661.0,1.2215529]
[1745328636979,0.193,89674.0,89663.0,0.0557626]
[1745328637185,0.001,89674.0,89662.0,0.111524]
[1745328637393,0.00016733,89676.0,89662.0,0.110524]
[1745328637590,0.3608,89674.0,89663.0,0.08848]
[1745328637790,0.3608,89672.0,89663.0,0.08848]
[1745328638388,0.3608,89664.0,89661.0,0.1922]
[1745328638589,0.3608,89664.0,89662.0,0.2035]
[1745328639090,0.3608,89664.0,89663.0,0.1856]
[1745328639291,0.5528,89664.0,89663.0,0.1856]
[1745328639588,0.5528,89664.0,89629.0,0.09015372]
[1745328639589,0.8048,89664.0,89629.0,0.09015372]
[1745328639787,0.3608,89651.0,89635.0,0.1746]
[1745328639992,0.394,89650.0,89645.0,0.3608]
[1745328640392,0.001,89649.0,89645.0,0.3608]
[1745328640590,0.001,89649.0,89636.0,0.3608]
[1745328640788,0.1993,89648.0,89636.0,0.3608]
[1745328640985,0.1957,89647.0,89638.0,0.3608]
[1745328641291,0.1957,89647.0,89627.0,0.3608]
[1745328641292,0.0575,89647.0,89627.0,0.3608]
[1745328641489,0.0575,89647.0,89620.0,0.1816]
[1745328641490,0.2443,89646.0,89620.0,0.1816]
[1745328641683,0.2443,89646.0,89630.0,0.003]
[1745328641884,0.00016733,89642.0,89631.0,0.1816]
[1745328642090,0.19216733,89642.0,89641.0,0.3608]
[1745328642496,0.19316733,89642.0,89641.0,0.3608]
[1745328642685,0.19324733,89642.0,89641.0,0.3608]
[1745328642892,0.19324733,89642.0,89637.0,0.0002704]
[1745328643092,0.1943,89641.0,89637.0,0.0002704]
[1745328643392,0.001,89638.0,89637.0,0.0002704]
[1745328643991,0.1933,89641.0,89637.0,0.0002704]
[1745328644290,0.192,89641.0,89637.0,0.3929704]
[1745328644683,0.001,89638.0,89637.0,0.3929704]
[1745328644887,0.001,89638.0,89637.0,0.3989704]
[1745328645089,0.193,89638.0,89637.0,0.3989704]
[1745328645289,0.193,89638.0,89637.0,0.0062704]
[1745328645490,0.193,89638.0,89637.0,0.31273039]
[1745328645704,0.3608,89663.0,89637.0,0.31273039]
[1745328645705,0.1974,89659.0,89638.0,0.0557787]
[1745328645889,0.1974,89659.0,89647.0,0.3598]
[1745328646096,0.00827349,89659.0,89658.0,0.3608]
[1745328646293,0.1974,89670.0,89658.0,0.3608]
[1745328646501,0.1889,89669.0,89658.0,0.3608]
[1745328646687,8e-05,89659.0,89653.0,0.3608]
[1745328646893,8e-05,89659.0,89653.0,0.7216]
[1745328647090,8e-05,89659.0,89654.0,0.111536]
[1745328647399,0.00826176,89670.0,89654.0,0.111536]
[1745328647591,0.00010801,89680.0,89670.0,0.0557588]
[1745328647793,0.00010801,89680.0,89679.0,0.3598]
[1745328648299,0.00019684,89706.0,89683.0,0.1115012]
[1745328648597,0.3943,89699.0,89688.0,0.3608]
[1745328648800,0.3953,89699.0,89688.0,0.3608]
[1745328649001,0.001,89698.0,89688.0,0.3598]
[1745328649200,8e-05,89689.0,89688.0,0.3598]
[1745328649504,0.002,89689.0,89685.0,0.00016733]